bitfinex/quotes_SOLUSD_20241009
["timestamp","ask_amount","ask_price","bid_price","bid_amount"]
[1728435042000,6.9498,143.89,143.85,1.39002544]
[1728435042485,6.9507,143.87,143.83,17.3807]
[1728435042859,6.9497,143.89,143.84,1.39023391]
[1728435043179,6.9509,143.87,143.83,17.3807]
[1728435043378,7.22843796,143.92,143.83,6.9523]
[1728435043590,6.9503,143.88,143.84,1.39015684]
[1728435044082,7.22843796,143.92,143.85,23.776884]
[1728435044083,6.9499,143.89,143.85,23.776884]
[1728435044275,6.9499,143.89,143.85,1.39005511]
[1728435045579,6.9493,143.9,143.85,8.34155511]
[1728435045783,6.9502,143.88,143.84,24.3314]
[1728435045983,6.9502,143.88,143.84,17.3794]
[1728435046185,6.9512,143.86,143.82,6.953]
[1728435046368,6.9512,143.86,143.81,17.3837]
[1728435046369,17.3727,143.91,143.83,32.11955991]
[1728435046566,17.3727,143.91,143.83,30.729384]
[1728435047177,6.9498,143.89,143.84,6.952]
[1728435047375,6.9498,143.89,143.85,1.39013595]
[1728435047585,6.9498,143.89,143.85,8.34173595]
[1728435047973,7.22843796,143.92,143.85,8.34173595]
[1728435048183,6.9493,143.9,143.85,8.34173595]
[1728435048494,6.9493,143.9,143.85,6.9516]
[1728435049265,6.9493,143.9,143.86,1.3900202]
[1728435049513,7.22843796,143.92,143.86,8.3411202]
[1728435049690,6.9491,143.91,143.86,8.3411202]
[1728435050500,6.9491,143.91,143.86,6.9511]
[1728435051890,6.9491,143.91,143.87,1.38991545]
[1728435052581,6.9482,143.93,143.87,1.38991545]
[1728435052788,6.9482,143.93,143.88,17.3752]
[1728435052983,6.9482,143.93,143.89,1.38976714]
[1728435053696,6.9483,143.92,143.89,1.38976714]
[1728435054482,6.9483,143.92,143.88,24.3252]
[1728435054791,6.9483,143.92,143.89,1.38975118]
[1728435055577,6.9483,143.92,143.88,24.3252]
[1728435055775,6.9483,143.92,143.88,17.3752]
[1728435056287,6.9483,143.92,143.89,1.38975188]
[1728435057173,6.9483,143.92,143.88,17.3752]
[1728435057573,6.9483,143.92,143.89,1.38975113]
[1728435058077,16.0675,143.94,143.83,22.2155]
[1728435058279,6.9493,143.9,143.86,6.9507]
[1728435058885,6.9493,143.9,143.87,1.38989559]
[1728435059087,6.9488,143.91,143.87,8.34049559]
[1728435059891,6.9488,143.91,143.88,1.38984199]
[1728435060992,16.0675,143.94,143.88,1.38985958]
[1728435061197,13.48788243,143.97,143.88,1.38985958]
[1728435061407,6.9474,143.94,143.9,6.949]
[1728435061572,6.9474,143.94,143.91,1.38959071]
[1728435062172,6.9468,143.95,143.91,1.38959071]
[1728435062398,7.23108243,143.97,143.89,41.150584]
[1728435062604,7.23108243,143.97,143.9,1.38963114]
[1728435063403,7.23108243,143.97,143.9,8.33883114]
[1728435063702,14.17708243,143.97,143.92,6.9482]
[1728435064003,6.9474,143.94,143.87,44.027864]
[1728435064695,6.9473,143.95,143.91,6.9486]
[1728435064903,15.6656,143.98,143.91,6.9486]
[1728435065085,15.6656,143.98,143.92,1.3894054]
[1728435065300,6.9467,143.96,143.91,23.776884]
[1728435065604,6.9467,143.96,143.91,30.725484]
[1728435066200,6.9459,143.97,143.92,1.38938539]
[1728435066406,6.9459,143.97,143.92,6.9482]
[1728435066580,6.9464,143.96,143.92,6.9482]
[1728435066891,15.6656,143.98,143.87,17.3761]
[1728435067196,15.6656,143.98,143.86,15.8113]
[1728435067404,17.3693,143.94,143.86,15.8113]
[1728435068406,23.6532,143.94,143.85,6.9516]
[1728435068699,23.6532,143.94,143.86,8.3410658]
[1728435068897,6.9489,143.91,143.86,8.3410658]
[1728435069103,6.9479,143.93,143.86,18.7672658]
[1728435069403,6.9475,143.94,143.89,6.9492]
[1728435069601,6.9475,143.94,143.89,8.33895133]
[1728435070083,20.0,143.96,143.83,40.31090075]
[1728435070282,34.60392799,143.98,143.87,23.776884]
[1728435070283,6.9488,143.91,143.87,23.776884]
[1728435070483,17.3681,143.95,143.88,1.3898298]
[1728435070699,6.9483,143.92,143.88,1.3898298]
[1728435071381,6.9474,143.94,143.9,6.9492]
[1728435071578,6.9474,143.94,143.91,1.38958194]
[1728435073491,6.9469,143.95,143.91,1.38958194]
[1728435073697,6.9469,143.95,143.91,8.33828194]
[1728435073900,6.9469,143.95,143.92,1.38945099]
[1728435074402,22.1776,143.98,143.92,1.38945099]
[1728435074594,22.1776,143.98,143.92,8.33755099]
[1728435074595,6.9463,143.96,143.92,8.33755099]
[1728435074800,22.1776,143.98,143.9,30.725684]
[1728435075005,6.9474,143.94,143.91,1.38951813]
[1728435075415,6.9468,143.95,143.91,8.33811813]
[1728435075790,6.9468,143.95,143.91,6.9486]
[1728435076307,6.9468,143.95,143.9,30.725984]
[1728435077311,6.9468,143.95,143.91,8.33806669]
[1728435077510,6.9468,143.95,143.91,6.9486]
[1728435078895,6.9478,143.93,143.9,23.776884]
[1728435079078,17.3654,143.97,143.88,22.2049]
[1728435079079,6.9485,143.92,143.88,22.2049]
[1728435079284,6.9485,143.92,143.87,6.9506]
[1728435079694,6.9479,143.93,143.88,8.33938893]
[1728435080421,6.9479,143.93,143.88,6.9497]
[1728435080893,6.9493,143.9,143.86,17.3775]
[1728435081406,6.9498,143.89,143.84,28.6947]
[1728435081608,6.9498,143.89,143.85,6.9515]
[1728435082083,17.3701,143.93,143.84,39.1224]
[1728435082084,6.9493,143.9,143.84,39.1224]
[1728435082287,6.9488,143.91,143.86,6.951]
[1728435082490,6.9479,143.93,143.89,6.9495]
[1728435082713,6.9479,143.93,143.9,1.38962332]
[1728435082888,22.1776,143.98,143.9,1.38962332]
[1728435083213,22.1776,143.98,143.9,8.33842332]
[1728435083417,6.9469,143.95,143.91,6.9486]
[1728435083716,6.9469,143.95,143.9,6.9491]
[1728435084018,17.3665,143.96,143.88,23.776884]
[1728435084804,17.3665,143.96,143.89,1.3897239]
[1728435085118,6.9479,143.93,143.88,30.726884]
[1728435085802,6.9479,143.93,143.89,1.38969244]
[1728435087222,6.9479,143.93,143.88,30.726884]
[1728435087801,6.9474,143.94,143.9,6.9491]
[1728435088000,6.9474,143.94,143.91,1.3895936]
[1728435088223,7.2229041,143.97,143.89,17.3738]
[1728435088423,6.9478,143.93,143.89,24.3234]
[1728435089110,6.9478,143.93,143.89,17.3738]
[1728435090303,24.5883041,143.97,143.88,6.9501]
[1728435090509,6.9492,143.91,143.86,24.328]
[1728435090728,6.9492,143.91,143.87,1.38982258]
[1728435091219,6.9483,143.92,143.87,8.34002258]
[1728435092017,6.9479,143.93,143.89,6.9497]
[1728435092327,6.9479,143.93,143.9,1.38965723]
[1728435092636,6.9469,143.95,143.91,1.38965148]
[1728435092807,6.9464,143.96,143.92,6.9482]
[1728435093128,6.9464,143.96,143.9,17.3724]
[1728435093129,6.9459,143.97,143.93,8.33715187]
[1728435093708,6.9464,143.96,143.92,6.9481]
[1728435093920,43.81813301,144.01,143.92,6.9481]
[1728435094107,6.946,143.97,143.92,6.9481]
[1728435094302,6.946,143.97,143.93,1.38930007]
[1728435094553,6.946,143.97,143.92,6.9481]
[1728435095312,6.946,143.97,143.93,1.3892992]
[1728435097624,6.9455,143.98,143.93,8.3368992]
[1728435098833,24.58584258,144.01,143.92,24.3183]
[1728435099213,6.9465,143.96,143.92,17.3702]
[1728435099921,6.9465,143.96,143.92,24.3184]
[1728435101134,6.9465,143.96,143.93,1.38931346]
[1728435101329,24.58584258,144.01,143.93,1.38931346]
[1728435101538,6.945,143.99,143.94,6.9472]
[1728435101739,21.4795,144.02,143.94,6.9472]
[1728435101740,6.9445,144.0,143.95,1.38914329]
[1728435101914,6.9441,144.01,143.97,6.9458]
[1728435102239,6.9445,144.0,143.95,6.9467]
[1728435102441,6.9445,144.0,143.96,1.38899511]
[1728435103414,6.9445,144.0,143.95,6.9467]
[1728435105636,6.945,143.99,143.95,6.9467]
[1728435106336,6.9445,144.0,143.96,8.33530624]
[1728435106642,6.9439,144.01,143.97,6.9458]
[1728435106940,6.9439,144.01,143.98,1.38889084]
[1728435107641,6.9435,144.02,143.98,1.38889084]
[1728435109238,6.943,144.03,143.98,8.33419084]
[1728435109644,6.943,144.03,143.99,1.38876836]
[1728435110952,6.943,144.03,143.99,6.9448]
[1728435111615,6.943,144.03,144.0,1.38868381]
[1728435112329,6.9426,144.04,144.0,8.33308381]
[1728435112528,6.9421,144.05,144.01,30.720684]
[1728435112831,6.9426,144.04,144.01,23.776884]
[1728435114035,6.9426,144.04,144.0,17.3605]
[1728435114235,6.9441,144.01,143.97,24.3098]
[1728435114557,17.3546,144.06,143.98,8.33408705]
[1728435114726,17.3546,144.06,143.98,6.9453]
[1728435114929,6.9436,144.02,143.98,6.9453]
[1728435115132,6.9436,144.02,143.99,1.3887517]
[1728435117439,6.9436,144.02,143.99,1.3887517]
[1728435117619,6.9436,144.02,143.99,23.776884]
[1728435120553,6.944,144.01,143.98,23.776884]
[1728435120934,17.3546,144.06,143.99,1.38878266]
[1728435121856,6.9434,144.03,143.98,6.9453]
[1728435122067,6.9434,144.03,143.99,8.33334018]
[1728435122239,6.9421,144.05,144.0,30.721084]
[1728435122437,6.9425,144.04,144.0,30.721084]
[1728435123958,6.9425,144.04,144.01,1.38852218]
[1728435124150,6.9425,144.04,144.0,30.721084]
[1728435125838,6.9439,144.01,143.97,6.9458]
[1728435127563,6.9439,144.01,143.95,17.3664]
[1728435127564,26.1817,144.07,143.98,1.38880568]
[1728435127769,20.0,144.05,143.98,1.38880568]
[1728435128063,6.9436,144.02,143.98,1.38880568]
[1728435128260,6.9436,144.02,143.98,8.33410568]
[1728435128472,6.943,144.03,143.99,6.9448]
[1728435128670,6.943,144.03,144.0,1.38867457]
[1728435129274,6.9419,144.06,144.0,23.776884]
[1728435129565,6.9419,144.06,144.01,8.33241894]
[1728435129766,16.2607,144.08,144.01,1.38851894]
[1728435129964,6.9425,144.04,144.0,30.721184]
[1728435130346,6.9425,144.04,144.01,1.38852169]
[1728435130955,6.9421,144.05,144.01,1.38852169]
[1728435131876,6.941,144.08,144.03,6.9427]
[1728435132057,6.941,144.08,144.04,1.38825391]
[1728435132773,6.9411,144.07,144.04,1.38827015]
[1728435134582,15.1889,144.11,144.04,8.33067015]
[1728435134785,15.1889,144.11,144.04,1.38827015]
[1728435134953,6.9397,144.1,144.05,6.9416]
[1728435135148,15.1889,144.11,144.06,1.38809749]
[1728435135351,6.9402,144.09,144.04,23.776884]
[1728435135574,6.9407,144.08,144.04,23.776884]
[1728435136464,32.5379,144.11,144.03,23.776884]
[1728435136666,32.5379,144.11,144.0,17.3607]
[1728435137263,32.5379,144.11,144.01,23.776884]
[1728435137466,6.9416,144.06,144.02,1.38840023]
[1728435137753,15.1889,144.11,144.01,23.776884]
[1728435137952,6.9431,144.03,143.98,29.3759]
[1728435138375,6.9416,144.06,144.01,6.9437]
[1728435138683,6.9427,144.04,143.99,24.3064]
[1728435138886,6.943,144.03,143.99,24.3064]
[1728435139174,6.943,144.03,144.0,23.776884]
[1728435139624,6.9435,144.02,143.99,17.3616]
[1728435139877,17.352,144.08,143.99,17.3616]
[1728435140061,6.943,144.03,144.0,1.38866018]
[1728435140578,6.943,144.03,143.99,24.3064]
[1728435141160,6.943,144.03,144.0,1.3886431]
[1728435141359,17.352,144.08,144.0,1.3886431]
[1728435141563,6.9421,144.05,144.01,23.776884]
[1728435142495,6.943,144.03,144.01,23.776884]
[1728435142788,6.9434,144.02,143.99,23.776884]
[1728435143156,6.9446,144.0,143.96,17.3652]
[1728435143382,16.4962,144.05,143.94,21.9787]
[1728435143383,23.7798,144.04,143.94,21.9787]
[1728435143704,6.9464,143.96,143.91,22.8852]
[1728435143880,17.3627,143.99,143.91,15.9365]
[1728435144081,6.9474,143.94,143.91,15.9365]
[1728435144273,6.9481,143.93,143.91,15.9365]
[1728435144480,6.9461,143.97,143.92,8.33761334]
[1728435144795,20.0,144.01,143.92,8.33761334]
[1728435144983,6.9463,143.96,143.92,8.33761334]
[1728435145393,6.9463,143.96,143.92,1.38951334]
[1728435146500,20.0,144.01,143.92,1.38951334]
[1728435146672,6.9454,143.99,143.93,6.9473]
[1728435146871,6.9454,143.98,143.94,1.38923248]
[1728435147074,17.3591,144.02,143.94,8.33633248]
[1728435147275,6.945,143.99,143.94,8.33633248]
[1728435147596,17.3591,144.02,143.93,23.776884]
[1728435147788,17.3591,144.02,143.93,30.724584]
[1728435147974,6.9455,143.98,143.93,30.724584]
[1728435148174,6.9455,143.98,143.94,1.38917802]
[1728435148700,6.9455,143.98,143.93,30.724584]
[1728435151281,6.9455,143.98,143.92,23.776884]
[1728435151492,6.9455,143.98,143.94,6.9473]
[1728435152984,6.9459,143.97,143.94,23.776884]
[1728435154082,6.9475,143.94,143.91,15.9365]
[1728435154296,15.5641,143.99,143.91,15.9365]
[1728435154502,6.9463,143.97,143.92,6.9481]
[1728435154708,6.9463,143.97,143.91,15.9365]
[1728435154709,6.9464,143.96,143.91,22.8852]
[1728435154912,15.5641,143.99,143.92,6.9483]
[1728435155198,6.9465,143.96,143.91,22.8851]
[1728435155508,6.9469,143.95,143.92,23.776884]
[1728435156403,6.9473,143.94,143.9,17.3725]
[1728435156614,6.3027,143.98,143.91,1.3894324]
[1728435156615,6.9468,143.95,143.91,1.3894324]
[1728435157410,6.9468,143.95,143.91,8.3380324]
[1728435157905,6.9468,143.95,143.91,23.776884]
[1728435160480,17.3641,143.98,143.89,6.9496]
[1728435160800,6.9479,143.93,143.9,23.776884]
[1728435161012,6.9473,143.94,143.91,1.38957756]
[1728435162200,6.9473,143.94,143.9,23.776884]
[1728435163017,6.9486,143.92,143.88,23.776884]
[1728435163315,6.9486,143.92,143.87,39.8694]
[1728435164007,6.9486,143.92,143.88,1.38971777]
[1728435164213,6.9479,143.93,143.88,8.33971777]
[1728435164885,6.9474,143.94,143.89,30.726584]
[1728435165081,6.9474,143.94,143.9,8.33877204]
[1728435166113,6.9474,143.94,143.9,1.38957204]
[1728435167128,6.9469,143.95,143.91,30.725384]
[1728435167421,32.9271,143.99,143.92,6.9482]
[1728435167422,6.9465,143.96,143.92,6.9482]
[1728435167594,6.9465,143.96,143.93,1.38937644]
[1728435168497,6.9468,143.95,143.91,6.9487]
[1728435169092,6.9468,143.95,143.92,1.38940746]
[1728435170017,6.9468,143.95,143.91,6.9487]
[1728435170213,6.9468,143.95,143.92,25.16630978]
[1728435170812,6.9468,143.95,143.92,23.776884]
[1728435171212,6.9465,143.96,143.93,1.3893771]
[1728435171695,6.9465,143.96,143.92,23.776884]
[1728435173512,6.9472,143.95,143.9,6.9492]
[1728435173822,6.9472,143.95,143.91,1.38948791]
[1728435174195,6.9472,143.95,143.91,23.776884]
[1728435178821,6.9472,143.95,143.91,6.9487]
[1728435179698,6.9472,143.95,143.9,30.726084]
[1728435181222,17.3651,143.97,143.87,15.5427]
[1728435181428,6.9488,143.91,143.87,22.4929]
[1728435181729,6.9488,143.91,143.87,15.5427]
[1728435182108,6.9488,143.91,143.87,22.4932]
[1728435182522,17.3676,143.95,143.88,1.38976485]
[1728435182698,6.9479,143.93,143.89,6.9497]
[1728435182901,6.9479,143.93,143.9,1.38966452]
[1728435184652,6.9468,143.95,143.91,23.776884]
[1728435184941,6.9473,143.94,143.91,23.776884]
[1728435185303,17.3639,143.98,143.91,23.776884]
[1728435185304,6.9469,143.95,143.92,1.38948071]
[1728435186425,6.9465,143.96,143.92,1.38948071]
[1728435188125,6.9457,143.98,143.92,1.38948071]
[1728435188831,6.9458,143.97,143.93,6.9477]
[1728435189007,6.9458,143.97,143.94,1.38928957]
[1728435190619,6.9458,143.97,143.93,1.38929649]
[1728435190930,6.9454,143.98,143.94,23.776884]
[1728435191130,23.6633,144.01,143.94,23.776884]
[1728435191304,6.9473,143.94,143.9,6.9491]
[1728435191503,6.9473,143.94,143.91,23.776884]
[1728435193127,6.9469,143.95,143.92,1.38945656]
[1728435193426,6.9464,143.96,143.92,1.38945656]
[1728435193724,6.947,143.95,143.91,23.776884]
[1728435194328,17.3628,143.99,143.91,23.776884]
[1728435194510,6.9485,143.92,143.87,15.5427]
[1728435194710,6.9485,143.92,143.87,22.493]
[1728435195939,6.9485,143.92,143.88,32.11657478]
[1728435196123,6.9485,143.92,143.88,30.726884]
[1728435203339,6.9485,143.92,143.89,1.38969221]
[1728435203846,6.9485,143.92,143.88,30.726884]
[1728435204141,33.497,143.97,143.88,30.726884]
[1728435204449,17.3676,143.95,143.86,17.3773]
[1728435204624,6.9502,143.88,143.84,6.9518]
[1728435204819,6.9497,143.9,143.85,6.9512]
[1728435205025,6.9501,143.89,143.84,6.952]
[1728435205251,15.3653,143.91,143.83,17.3808]
[1728435205554,6.9515,143.86,143.82,15.7025]
[1728435205856,6.9508,143.87,143.83,1.39031252]
[1728435206145,6.952,143.85,143.8,17.3847]
[1728435206330,6.6379,143.9,143.8,24.3387]
[1728435206331,6.9522,143.84,143.8,24.3387]
[1728435206529,6.9522,143.84,143.8,17.3847]
[1728435206731,6.9515,143.86,143.81,1.39049415]
[1728435207443,17.375,143.89,143.81,1.39049415]
[1728435207748,6.6379,143.9,143.85,6.9516]
[1728435207749,6.9493,143.9,143.85,6.9516]
[1728435208044,15.3653,143.91,143.86,1.39003785]
[1728435208545,6.9497,143.89,143.86,1.39003785]
[1728435208738,6.9497,143.9,143.86,1.39003785]
[1728435208939,6.9488,143.91,143.87,1.39002152]
[1728435209446,6.9493,143.9,143.87,1.39002152]
[1728435209649,6.9489,143.91,143.87,6.9506]
[1728435209854,6.9484,143.92,143.88,1.38979415]
[1728435210335,6.6487,143.94,143.88,8.33999415]
[1728435210336,6.9478,143.93,143.88,8.33999415]
[1728435210849,6.9488,143.91,143.87,24.3265]
[1728435211352,6.9481,143.93,143.88,1.38979276]
[1728435211653,6.9481,143.93,143.88,8.33969276]
[1728435214251,6.9481,143.93,143.89,23.776884]
[1728435214431,6.9481,143.93,143.9,1.38961628]
[1728435214630,6.9473,143.94,143.9,1.38961628]
[1728435214837,6.9473,143.94,143.9,8.33871628]
[1728435215149,6.3205,143.98,143.91,30.725584]
[1728435215339,6.9465,143.96,143.92,1.38940144]
[1728435216364,6.9458,143.98,143.93,30.724284]
[1728435216533,13.61371231,144.01,143.93,30.724284]
[1728435216534,6.9459,143.97,143.93,23.776884]
[1728435217039,6.9459,143.97,143.92,30.725084]
[1728435217756,6.9453,143.99,143.94,23.776884]
[1728435217948,6.9453,143.99,143.95,1.38914039]
[1728435218250,6.9453,143.99,143.95,8.33594039]
[1728435219342,35.91485346,144.06,143.95,1.38914039]
[1728435219651,6.9425,144.04,144.0,23.776884]
[1728435219850,6.9425,144.04,144.01,1.38855302]
[1728435220034,6.9425,144.04,144.0,23.776884]
[1728435220358,29.76269679,144.08,144.03,6.9428]
[1728435220539,6.9416,144.06,144.01,24.3028]
[1728435220731,15.6087,144.08,144.0,23.776884]
[1728435221134,6.942,144.05,144.0,30.721284]
[1728435222233,6.942,144.05,144.01,1.38848606]
[1728435222433,6.942,144.05,144.02,23.776884]
[1728435222633,6.942,144.05,144.03,1.38839837]
[1728435224064,6.942,144.05,144.01,23.776884]
[1728435226640,6.942,144.05,144.02,1.38843116]
[1728435227059,15.6087,144.08,144.0,23.776884]
[1728435227248,6.9425,144.04,144.0,23.776884]
[1728435228267,6.9425,144.04,144.02,23.776884]
[1728435228437,6.9425,144.04,144.0,23.776884]
[1728435229862,6.9425,144.04,144.01,1.38851504]
[1728435230157,6.9421,144.05,144.01,1.38851504]
[1728435232557,15.6087,144.08,144.0,23.776884]
[1728435232762,6.943,144.03,144.0,23.776884]
[1728435235066,6.943,144.03,144.01,1.38856419]
[1728435236569,22.81457739,144.08,144.01,1.38856419]
[1728435236744,15.6087,144.08,144.01,1.38856419]
[1728435237057,6.9425,144.04,144.01,1.38856419]
[1728435237364,6.9425,144.04,144.0,23.776884]
[1728435237543,6.9425,144.04,144.01,1.38855485]
[1728435238344,6.9434,144.02,144.0,23.776884]
[1728435238563,6.9425,144.04,144.01,1.3886215]
[1728435239556,6.9421,144.05,144.01,8.3325215]
[1728435240466,6.9416,144.06,144.02,23.776884]
[1728435240647,7.20676855,144.1,144.04,23.776884]
[1728435240972,6.9397,144.1,144.06,23.776884]
[1728435241172,6.9397,144.1,144.07,1.38793279]
[1728435241466,6.9397,144.1,144.06,23.776884]
[1728435241467,15.5509,144.12,144.05,23.776884]
[1728435241653,6.9411,144.07,144.05,23.776884]
[1728435241860,17.3485,144.11,144.05,23.776884]
[1728435242050,6.9411,144.07,144.05,23.776884]
[1728435245168,6.9411,144.07,144.06,1.38815861]
[1728435245474,6.9411,144.07,144.05,23.776884]
[1728435245973,6.9411,144.07,144.04,16.6263]
[1728435246269,6.9416,144.06,144.04,23.776884]
[1728435247570,17.3485,144.11,144.05,1.38826717]
[1728435247754,6.9411,144.07,144.05,1.38826717]
[1728435248573,6.9416,144.06,144.02,23.776884]
[1728435249858,6.943,144.03,144.0,15.3901]
[1728435250076,6.943,144.03,143.99,13.0395]
[1728435250757,6.9426,144.04,144.0,1.38852229]
[1728435250958,6.9426,144.04,144.0,23.776884]
[1728435251870,6.9426,144.04,144.0,30.721084]
[1728435252067,6.943,144.03,144.0,23.776884]
[1728435252271,6.9439,144.02,144.0,23.776884]
[1728435252476,16.1904,144.06,143.97,16.5743]
[1728435252684,6.9439,144.01,143.98,1.38878074]
[1728435253265,6.9439,144.01,143.97,16.5743]
[1728435253581,17.3556,144.05,143.97,16.5743]
[1728435253770,17.3556,144.05,143.96,6.9463]
[1728435253771,17.3556,144.05,143.96,23.776884]
[1728435253973,6.944,144.01,143.97,1.38891216]
[1728435254282,16.1904,144.06,144.0,23.776884]
[1728435254473,6.9419,144.06,144.01,8.33208141]
[1728435254866,17.3518,144.08,144.0,23.776884]
[1728435255076,6.9441,144.01,143.97,23.776884]
[1728435255371,6.9444,144.0,143.96,23.776884]
[1728435255875,6.944,144.01,143.96,30.723184]
[1728435257282,6.9434,144.03,143.98,6.9453]
[1728435257573,17.353,144.07,143.98,23.776884]
[1728435257574,6.944,144.01,143.98,23.776884]
[1728435258360,6.9435,144.02,143.99,1.38879442]
[1728435258563,17.353,144.07,143.99,1.38879442]
[1728435258761,17.353,144.07,144.0,23.776884]
[1728435258973,6.9428,144.04,144.0,23.776884]
[1728435259782,17.353,144.07,143.98,30.722184]
[1728435260089,6.9435,144.02,143.98,30.722184]
[1728435261789,6.9426,144.04,144.0,6.9442]
[1728435262089,6.9426,144.04,144.0,23.776884]
[1728435264364,6.9426,144.04,144.0,30.721084]
[1728435264567,34.56773369,144.09,144.01,18.74789342]
[1728435264792,6.9406,144.08,144.04,6.9424]
[1728435264961,6.9411,144.07,144.04,23.776884]
[1728435265268,6.9411,144.07,144.02,30.720284]
[1728435265470,24.55409144,144.11,144.02,30.720284]
[1728435265471,6.9416,144.06,144.02,30.720284]
[1728435266099,24.55409144,144.11,144.02,23.776884]
[1728435266400,6.9405,144.09,144.04,6.9423]
[1728435266779,17.3489,144.11,144.04,6.9423]
[1728435267086,6.9405,144.09,144.05,23.776884]
[1728435268087,6.9412,144.07,144.04,23.776884]
[1728435268594,17.3489,144.11,144.02,23.776884]
[1728435268799,6.9414,144.07,144.02,30.720084]
[1728435270185,17.3508,144.09,144.01,23.776884]
[1728435270390,6.9423,144.05,144.01,23.776884]
[1728435270690,6.9415,144.06,144.02,1.38852062]
[1728435271294,6.9406,144.08,144.03,23.776884]
[1728435272086,16.441,144.12,144.04,17.3553]
[1728435272274,6.9402,144.09,144.04,24.2974]
[1728435274193,6.9402,144.09,144.05,23.776884]
[1728435274375,6.9397,144.1,144.05,30.718484]
[1728435274573,6.9397,144.1,144.06,1.38808759]
[1728435277479,6.9392,144.11,144.06,8.32938759]
[1728435279095,6.9392,144.11,144.06,6.9413]
[1728435279287,7.20725469,144.14,144.05,30.718784]
[1728435279972,17.3465,144.13,144.04,17.3553]
[1728435280174,17.3465,144.13,143.99,54.27266503]
[1728435280175,6.9421,144.05,144.01,24.3031]
[1728435280388,6.9421,144.05,144.01,17.3593]
[1728435280588,6.9412,144.07,144.02,6.9431]
[1728435280791,23.0644,144.1,144.03,8.33118663]
[1728435280792,6.9406,144.08,144.03,8.33118663]
[1728435281190,6.9406,144.08,144.04,6.9423]
[1728435283987,6.9397,144.1,144.06,6.9414]
[1728435284383,6.9404,144.09,144.05,17.3542]
[1728435285400,6.9404,144.09,144.05,24.2961]
[1728435285874,6.9392,144.11,144.06,8.32948159]
[1728435286078,6.9387,144.12,144.07,6.9408]
[1728435286304,6.9388,144.12,144.07,17.3519]
[1728435286477,6.9388,144.12,144.07,24.2928]
[1728435286678,6.9388,144.12,144.08,1.38801248]
[1728435286907,6.9388,144.12,144.07,24.2928]
[1728435287202,21.7451,144.15,144.07,24.2928]
[1728435287405,6.9388,144.12,144.07,17.3519]
[1728435287697,6.9388,144.12,144.08,8.32831848]
[1728435288502,6.9388,144.12,144.08,6.9404]
[1728435288888,6.9388,144.12,144.08,8.32832349]
[1728435290404,7.20451743,144.16,144.08,21.38792349]
[1728435290602,6.9376,144.15,144.1,6.9395]
[1728435291314,6.9376,144.15,144.11,6.939]
[1728435291604,6.9376,144.15,144.1,17.3489]
[1728435292489,6.9376,144.15,144.1,18.73663721]
[1728435293081,6.9376,144.15,144.1,25.67603721]
[1728435293385,6.9376,144.15,144.1,24.2883]
[1728435293685,7.20406941,144.17,144.06,54.7065]
[1728435293686,6.9381,144.13,144.08,30.717384]
[1728435294278,7.20406941,144.17,144.07,24.2932]
[1728435294587,6.9392,144.11,144.07,24.2932]
[1728435295086,17.3428,144.16,144.07,24.2932]
[1728435295296,6.9387,144.12,144.07,24.2932]
[1728435295698,17.3428,144.16,144.08,1.3879134]
[1728435295883,17.3428,144.16,144.09,6.9399]
[1728435296087,6.9382,144.13,144.09,6.9399]
[1728435297391,17.3428,144.16,144.07,17.3523]
[1728435297588,6.9392,144.11,144.07,17.3523]
[1728435298897,32.4827,144.14,144.05,6.5343]
[1728435299401,15.1378,144.14,144.08,6.9405]
[1728435299799,6.9387,144.12,144.07,30.717784]
[1728435300111,6.9387,144.12,144.08,6.9404]
[1728435300295,6.9381,144.13,144.08,8.32829847]